bitfinex/quotes_ETHUSD_20250605
["timestamp","ask_amount","ask_price","bid_price","bid_amount"]
[1749148182934,5.94443799,2577.3,2577.2,3.88015129]
[1749148183162,5.93560918,2577.3,2577.2,3.88015129]
[1749148183349,5.93563994,2577.3,2577.2,3.88015129]
[1749148183554,5.57253694,2577.3,2577.2,3.88015129]
[1749148183758,5.93564023,2577.3,2577.2,3.88015129]
[1749148183953,6.67058449,2577.3,2577.2,3.88015129]
[1749148184264,5.57253694,2577.3,2577.2,3.88015129]
[1749148184470,12.38153694,2577.3,2577.2,3.88015129]
[1749148185163,13.10772692,2577.3,2577.2,3.88015129]
[1749148185826,12.74459588,2577.3,2577.2,3.88015129]
[1749148186028,12.38153694,2577.3,2577.2,3.88015129]
[1749148186271,13.10765566,2577.3,2577.2,3.88015129]
[1749148186566,12.38153694,2577.3,2577.2,3.88015129]
[1749148186986,12.74459169,2577.3,2577.2,3.88015129]
[1749148187194,12.74459195,2577.3,2577.2,3.88015129]
[1749148187354,13.10764619,2577.3,2577.2,3.88015129]
[1749148187550,13.10764776,2577.3,2577.2,3.88015129]
[1749148187754,13.10764582,2577.3,2577.2,3.88015129]
[1749148188008,11.17205456,2577.3,2577.2,3.88015129]
[1749148188296,11.17204174,2577.3,2577.2,3.88015129]
[1749148188455,11.17203979,2577.3,2577.2,3.88015129]
[1749148188794,11.53507782,2577.3,2577.2,3.88015129]
[1749148189358,11.17203891,2577.3,2577.2,3.88015129]
[1749148189663,11.17206424,2577.3,2577.2,3.88015129]
[1749148189867,4.0,2577.3,2577.2,3.88015129]
[1749148190102,11.53111149,2577.3,2577.2,3.88015129]
[1749148190304,11.53111444,2577.3,2577.2,3.88015129]
[1749148190613,11.53111578,2577.3,2577.2,3.88015129]
[1749148190958,11.53112001,2577.3,2577.2,3.88015129]
[1749148191167,11.16806265,2577.3,2577.2,3.88015129]
[1749148191374,12.56068138,2577.3,2577.2,3.88015129]
[1749148191706,12.56068758,2577.3,2577.1,0.02]
[1749148192016,0.72628936,2577.2,2577.1,3.90031471]
[1749148192223,5.09816265,2577.2,2577.1,0.02]
[1749148192509,7.88490189,2577.2,2577.1,0.02]
[1749148192713,7.88465917,2577.2,2577.1,0.02]
[1749148192992,7.52163321,2577.2,2577.1,0.02]
[1749148193196,7.66705218,2577.2,2577.1,0.02]
[1749148193359,7.15861113,2577.2,2577.1,0.02]
[1749148193569,7.30387837,2577.2,2577.1,0.02]
[1749148193876,14.04217768,2577.2,2577.1,3.9003306]
[1749148194089,5.09827671,2577.2,2577.1,3.9003306]
[1749148194401,2.68497392,2577.2,2577.1,21.2511306]
[1749148194641,1.26978473,2578.7,2578.5,3.87822377]
[1749148194859,2.87652578,2578.6,2578.5,3.87822377]
[1749148195148,13.08902771,2578.6,2578.5,19.87822377]
[1749148195302,12.726,2578.6,2578.5,19.87822377]
[1749148195619,9.4520197,2578.6,2578.5,19.87822377]
[1749148195808,9.08901496,2578.6,2578.5,19.87822377]
[1749148196209,9.08900591,2578.6,2578.5,19.87822377]
[1749148196436,8.726,2578.6,2578.5,19.87822377]
[1749148196628,8.724,2578.6,2578.5,19.87822377]
[1749148196934,9.08712125,2578.6,2578.5,19.87822377]
[1749148197120,9.08612206,2578.6,2578.5,19.87822377]
[1749148197300,9.08611594,2578.6,2578.5,19.87822377]
[1749148197501,8.723,2578.6,2578.5,19.87822377]
[1749148198732,1.02154438,2579.0,2578.8,3.87770179]
[1749148198918,0.36197048,2578.9,2578.8,3.87770179]
[1749148199240,6.797,2578.9,2578.8,4.64290179]
[1749148199538,6.797,2578.9,2578.8,3.87770179]
[1749148200354,2.14104438,2579.0,2578.9,3.87762224]
[1749148200656,8.93604438,2579.0,2578.9,3.87762224]
[1749148201003,0.826,2578.9,2578.5,3.87810376]
[1749148201320,0.21704438,2579.0,2578.9,3.87762224]
[1749148201518,7.01204438,2579.0,2578.9,3.87762224]
[1749148203162,7.01204438,2579.0,2578.8,3.87768662]
[1749148203360,7.01204438,2579.0,2578.9,3.87762224]
[1749148204270,7.01204438,2579.0,2578.5,0.792]
[1749148204448,7.01204438,2579.0,2578.5,4.67017413]
[1749148204651,0.8326,2578.9,2578.6,3.87798646]
[1749148205367,0.21704438,2579.0,2578.9,3.87762224]
[1749148205566,7.00804438,2579.0,2578.9,3.87762224]
[1749148205771,0.21704438,2579.0,2578.9,20.64542224]
[1749148205982,7.00804438,2579.0,2578.9,23.02096172]
[1749148206877,0.21704438,2579.0,2578.9,27.7187509]
[1749148207063,0.21704438,2579.0,2578.9,28.2687509]
[1749148207267,7.00704438,2579.0,2578.9,28.2687509]
[1749148208087,7.00604438,2579.0,2578.9,28.2687509]
[1749148208844,7.00504438,2579.0,2578.9,28.2687509]
[1749148209387,7.00404438,2579.0,2578.9,28.2687509]
[1749148209876,0.21704438,2579.0,2578.9,28.2687509]
[1749148210067,7.00404438,2579.0,2578.9,28.2687509]
[1749148210268,0.21704438,2579.0,2578.9,28.2687509]
[1749148210467,0.46528473,2581.0,2579.8,3.87626947]
[1749148210653,1.0,2581.1,2580.8,9.12255669]
[1749148210859,4.02,2580.9,2580.8,25.87895669]
[1749148211059,4.02,2580.9,2580.8,21.18116751]
[1749148211376,4.02,2580.9,2580.8,24.15655342]
[1749148211879,0.02,2580.9,2580.8,24.15655342]
[1749148212066,6.804,2580.9,2580.8,24.15655342]
[1749148212269,0.7178357,2582.7,2581.5,3.87371683]
[1749148212590,0.00964615,2583.2,2583.1,19.8713174]
[1749148212739,0.09710205,2583.2,2583.1,19.8713174]
[1749148213253,6.88010205,2583.2,2583.1,20.25503778]
[1749148213480,0.09710205,2583.2,2583.1,21.05713778]
[1749148213654,6.88010205,2583.2,2583.1,21.05713778]
[1749148213854,6.88010205,2583.2,2583.1,16.0]
[1749148214054,6.88010205,2583.2,2582.8,16.0]
[1749148214258,0.09710205,2583.2,2583.1,3.8713174]
[1749148214555,0.09710205,2583.2,2583.1,19.8713174]
[1749148214715,6.88010205,2583.2,2583.1,19.8713174]
[1749148214863,0.09710205,2583.2,2581.9,3.87311669]
[1749148215064,20.37696586,2583.1,2582.0,0.8262]
[1749148215264,8.82740679,2583.0,2582.0,10.55181077]
[1749148215562,0.0874559,2583.2,2582.6,0.55]
[1749148215794,6.779,2583.1,2583.0,3.87146728]
[1749148216004,0.68664559,2583.1,2583.0,16.0]
[1749148216296,0.68664559,2583.1,2582.6,16.0]
[1749148216297,6.779,2583.1,2582.8,3.87174341]
[1749148216497,6.779,2583.1,2582.9,3.87160655]
[1749148216706,6.779,2583.1,2582.9,3.87161665]
[1749148217062,6.779,2583.1,2582.8,3.87173379]
[1749148217265,0.6779,2583.0,2582.9,3.87161717]
[1749148217564,6.779,2583.0,2582.9,3.87161717]
[1749148218327,6.779,2583.0,2582.7,16.0]
[1749148218630,3.2780346,2583.8,2583.3,3.87091175]
[1749148218799,2.92340603,2583.8,2583.2,3.87112673]
[1749148219002,2.92340603,2583.8,2582.7,26.27561077]
[1749148219341,6.776,2583.7,2583.2,3.87102512]
[1749148219600,16.50161077,2583.7,2583.0,3.87138027]
[1749148219800,2.52033651,2583.6,2583.0,3.87138027]
[1749148220176,2.52033651,2583.6,2583.0,16.0]
[1749148220409,2.52033651,2583.6,2583.2,3.87115872]
[1749148220572,6.776,2583.7,2583.2,3.87115872]
[1749148221492,6.776,2583.7,2583.1,3.87126319]
[1749148221992,10.64644157,2583.7,2583.0,19.87138889]
[1749148222188,3.87056819,2583.6,2582.9,3.87151602]
[1749148222388,3.87056819,2583.6,2582.4,0.789]
[1749148222389,2.0372179,2583.5,2582.4,0.789]
[1749148222649,0.8221,2583.3,2582.0,0.8206]
[1749148222798,8.682,2583.2,2582.8,3.87171858]
[1749148223103,0.95041,2583.1,2582.8,3.87171858]
[1749148223491,0.95041,2583.1,2582.4,16.0]
[1749148223845,3.8715529,2583.0,2582.3,3.87243034]
[1749148224014,3.8715529,2583.0,2582.4,3.87233056]
[1749148224216,10.67602077,2583.1,2582.0,16.0]
[1749148224421,8.70780208,2583.0,2582.0,1.98730703]
[1749148224620,6.772,2583.0,2582.6,3.87206214]
[1749148225027,6.772,2583.0,2582.1,3.87281669]
[1749148225028,7.12657905,2583.0,2582.2,3.87257597]
[1749148225226,0.35457905,2582.9,2582.0,3.87296669]
[1749148225536,0.35457905,2582.8,2582.5,3.87213151]
[1749148225706,0.99851476,2582.9,2582.4,3.87232135]
[1749148226034,0.35473683,2582.8,2582.5,3.87214292]
[1749148226249,0.3547362,2582.8,2582.6,3.8720583]
[1749148226447,0.8125251,2582.8,2582.7,3.87191698]
[1749148226597,0.8125251,2582.8,2582.6,3.8720583]
[1749148226598,6.772,2582.8,2582.6,3.8720583]
[1749148226810,6.772,2582.8,2582.7,3.87191698]
[1749148227098,1.908,2582.8,2582.7,3.87191698]
[1749148227299,8.90527308,2582.8,2581.9,16.38668535]
[1749148227536,8.90527308,2582.8,2582.0,3.87296669]
[1749148227714,0.35490364,2582.7,2582.6,3.8720669]
[1749148227925,7.12590364,2582.7,2582.6,3.8720669]
[1749148228099,2.13427308,2582.8,2582.7,3.87191698]
[1749148228345,8.679,2582.8,2582.7,3.87191698]
[1749148228650,6.771,2582.8,2582.7,19.87191698]
[1749148229211,0.35531154,2583.1,2582.4,0.8171]
[1749148229445,1.908,2583.6,2583.4,3.87080059]
[1749148229741,1.908,2583.6,2583.5,3.87071801]
[1749148229939,9.03325454,2583.6,2583.5,3.87071801]
[1749148230112,9.03226878,2583.6,2583.5,3.87071801]
[1749148230603,8.677,2583.6,2583.5,3.87071801]
[1749148230936,2.09430603,2583.8,2583.7,3.87041839]
[1749148231310,2.4499371,2583.8,2583.7,3.87041839]
[1749148231515,0.02,2583.9,2583.8,3.87026859]
[1749148231742,7.14460268,2583.9,2583.8,3.87026859]
[1749148231919,0.37555927,2583.9,2583.8,3.87026859]
[1749148232125,6.789,2583.9,2583.8,19.87026859]
[1749148232328,0.02,2583.9,2583.8,19.87026859]
[1749148232527,6.789,2583.9,2583.8,19.87026859]
[1749148232754,6.789,2583.9,2583.8,22.63139164]
[1749148233174,6.787,2583.9,2583.8,22.63139164]
[1749148233464,0.02,2583.9,2583.8,19.87026859]
[1749148233609,6.787,2583.9,2583.8,19.87026859]
[1749148233811,0.02,2583.9,2583.8,20.42026859]
[1749148234015,6.787,2583.9,2583.8,21.17676859]
[1749148234319,6.787,2583.9,2583.8,25.42254772]
[1749148234837,0.02,2583.9,2583.8,25.42254772]
[1749148235367,6.787,2583.9,2583.8,25.42254772]
[1749148235576,0.02,2583.9,2583.8,25.42254772]
[1749148236169,0.02,2583.9,2583.8,24.87254772]
[1749148236312,0.02,2583.9,2583.8,21.00821359]
[1749148236813,7.14197088,2583.9,2583.8,21.00821359]
[1749148237034,7.14197088,2583.9,2583.8,21.55821359]
[1749148237350,7.14194068,2583.9,2583.8,21.55821359]
[1749148237652,6.785,2583.9,2583.8,21.55821359]
[1749148237954,6.785,2583.9,2583.8,21.00821359]
[1749148238455,7.50126849,2583.9,2583.8,3.87026859]
[1749148238854,7.86800491,2583.9,2583.8,19.87026859]
[1749148239026,7.50987598,2583.9,2583.8,3.87026859]
[1749148239227,7.8680695,2583.9,2583.8,3.87026859]
[1749148239559,7.86808127,2583.9,2583.8,3.87026859]
[1749148239726,7.50785659,2583.9,2583.8,21.46603503]
[1749148239926,7.86792685,2583.9,2583.8,21.46603503]
[1749148240119,7.50783671,2583.9,2583.8,20.64433503]
[1749148240317,7.86794354,2583.9,2583.8,20.64433503]
[1749148240518,7.8679333,2583.9,2583.8,20.64433503]
[1749148240842,7.86989725,2583.9,2583.8,3.87026859]
[1749148241040,7.86989725,2583.9,2583.7,3.87034596]
[1749148241041,7.96742811,2583.9,2583.7,3.87034596]
[1749148241351,2.73322016,2583.8,2583.0,0.8217]
[1749148241561,0.63931748,2583.9,2583.8,3.87026859]
[1749148241765,10.39835751,2583.9,2583.8,3.61857562]
[1749148241915,9.77913991,2583.9,2583.8,3.61857562]
[1749148242120,10.39212946,2583.9,2583.8,3.61857562]
[1749148242367,1.72418018,2583.9,2583.8,3.61857562]
[1749148242518,7.97211858,2583.9,2583.8,3.61857562]
[1749148242723,0.84988275,2583.9,2583.8,20.36747502]
[1749148243064,7.15067817,2583.9,2583.8,20.36747502]
[1749148243264,7.15067817,2583.9,2583.8,19.61857562]
[1749148243451,7.87088481,2583.9,2583.8,19.61857562]
[1749148243974,7.87088481,2583.9,2583.1,4.42128916]
[1749148243975,7.87094355,2583.9,2583.2,4.64156754]
[1749148244151,1.55021759,2583.8,2583.6,3.87049681]
[1749148244471,1.66108275,2583.7,2583.6,3.8705287]
[1749148244625,1.19987817,2583.7,2583.6,3.8705287]
[1749148244821,2.02129251,2583.7,2583.4,3.87072388]
[1749148245027,1.08910728,2583.6,2583.5,3.8705961]
[1749148245262,1.08908487,2583.6,2583.5,3.8705961]
[1749148245774,1.08916109,2583.6,2583.5,3.8705961]
[1749148245921,1.1901771,2583.6,2583.5,3.8705961]
[1749148246121,1.19018088,2583.6,2583.5,3.8705961]
[1749148246324,1.55047948,2583.6,2583.5,3.8705961]
[1749148246523,1.55047702,2583.6,2583.5,3.8705961]
[1749148247188,1.55047681,2583.6,2583.5,3.8705961]
[1749148247359,1.55047627,2583.6,2583.4,3.8708032]
[1749148247659,0.72900203,2583.5,2583.4,3.8708032]
[1749148247862,0.36867817,2583.5,2583.3,3.87088428]
[1749148248163,8.31169423,2583.4,2583.3,3.87088428]
[1749148248463,7.49006491,2583.4,2583.3,3.87088428]
[1749148248764,7.85043798,2583.4,2583.3,3.87088428]
[1749148248936,7.12967817,2583.4,2583.3,3.87088428]
[1749148249131,7.49005657,2583.4,2583.3,3.87088428]
[1749148249336,7.85043547,2583.4,2583.3,3.87088428]
[1749148249552,7.84943547,2583.4,2583.3,3.87088428]
[1749148249734,7.84944075,2583.4,2583.3,3.87088428]
[1749148249931,7.12867817,2583.4,2583.3,3.87088428]
[1749148250268,7.48901318,2583.4,2583.3,3.87088428]
[1749148250475,7.48901285,2583.4,2583.3,3.87088428]
[1749148250756,7.84935505,2583.4,2583.3,3.87088428]
[1749148250966,1.08935505,2583.4,2583.3,3.87088428]
[1749148251168,7.84935505,2583.4,2583.3,3.87088428]
[1749148251369,7.48909472,2583.4,2583.3,3.87088428]
[1749148251572,7.12867817,2583.4,2583.3,3.87088428]
[1749148251873,7.48909069,2583.4,2583.3,3.87088428]
[1749148252184,7.84944384,2583.4,2583.3,3.87088428]
[1749148252574,7.48906086,2583.4,2583.3,3.87088428]
[1749148252736,7.84944251,2583.4,2583.3,3.87088428]
[1749148252935,7.84945452,2583.4,2583.3,3.87088428]
[1749148253243,7.84946805,2583.4,2583.3,3.87088428]
[1749148253434,7.48974481,2583.4,2583.3,3.87088428]
[1749148253635,7.12923582,2583.4,2583.3,3.87088428]
[1749148253830,7.85025944,2583.4,2583.3,3.87088428]
[1749148254434,7.12923582,2583.4,2583.3,3.87088428]
[1749148255361,8.07831388,2583.4,2583.3,3.87088428]
[1749148255569,8.80004674,2583.4,2583.3,3.87088428]
[1749148255731,7.85097742,2583.4,2583.3,3.87088428]
[1749148255934,7.84996158,2583.4,2583.3,3.87088428]
[1749148256280,7.48909288,2583.4,2583.3,3.87088428]
[1749148256481,7.12823582,2583.4,2583.3,3.87088428]
[1749148256992,7.02823582,2583.4,2583.3,3.87088428]
[1749148257143,7.74994278,2583.4,2583.3,3.87088428]
[1749148257756,7.9677439,2583.4,2583.3,3.87088428]
[1749148257953,7.02823582,2583.4,2583.3,3.87088428]
[1749148258499,7.96777474,2583.4,2583.3,3.87088428]
[1749148258700,0.26923582,2583.4,2583.3,3.87088428]
[1749148258875,7.96679361,2583.4,2583.3,3.87088428]
[1749148259416,7.96677965,2583.4,2583.3,3.87088428]
[1749148259562,8.8095597,2583.4,2583.3,3.87088428]
[1749148259766,8.44823704,2583.4,2583.3,3.87088428]
[1749148259991,1.11206826,2583.4,2583.3,3.87088428]
[1749148260200,9.14505006,2583.4,2583.3,3.87088428]
[1749148260404,9.28959318,2583.4,2583.3,3.87088428]
[1749148260705,9.86773779,2583.4,2583.3,3.87088428]
[1749148261000,3.10974423,2583.4,2583.3,3.87088428]
[1749148261178,9.6499346,2583.4,2583.3,3.87088428]
[1749148261380,2.38704282,2583.4,2583.3,3.87088428]
[1749148261616,2.17023582,2583.4,2583.3,3.87088428]
[1749148261776,0.26923582,2583.4,2583.3,3.87088428]
[1749148261978,7.74876751,2583.4,2583.3,3.87088428]
[1749148262336,7.748748,2583.4,2583.3,3.87088428]
[1749148262538,0.21675161,2583.8,2583.7,3.87041839]
[1749148262694,7.4794247,2583.8,2583.7,3.87041839]
[1749148263033,6.757,2583.8,2583.7,3.87041839]
[1749148263412,7.11817163,2583.8,2583.7,3.87041839]
[1749148263748,8.658,2583.8,2583.7,3.87041839]
[1749148263905,9.01917393,2583.8,2583.7,3.87041839]
[1749148264245,7.11717502,2583.8,2583.7,21.41961438]
[1749148264414,6.756,2583.8,2583.7,21.41961438]
[1749148264734,0.02,2583.9,2583.8,3.87026859]
[1749148264956,7.90242729,2583.9,2583.0,0.7751]
[1749148265166,8.33144273,2583.9,2583.8,3.87026859]
[1749148265373,8.26398716,2583.9,2583.8,3.87026859]
[1749148265566,10.16499119,2583.9,2583.8,3.87026859]
[1749148265717,10.16497946,2583.9,2583.8,3.87026859]
[1749148265916,10.16497946,2583.9,2583.1,3.8713174]
[1749148265917,11.41999924,2583.9,2583.6,3.87054652]
[1749148266267,11.41999924,2583.9,2583.8,3.87026859]
[1749148266268,10.48038175,2583.9,2583.8,3.87026859]
[1749148266467,2.6437752,2583.9,2583.8,3.87026859]
[1749148266616,8.676,2583.9,2583.8,3.87026859]
[1749148266823,6.775,2583.9,2583.8,3.87026859]
[1749148267132,7.13650045,2583.9,2583.8,3.87026859]
[1749148267349,7.13653802,2583.9,2583.8,3.87026859]
[1749148267551,6.775,2583.9,2583.8,3.87026859]
[1749148267960,7.48865003,2583.9,2583.1,0.768]
[1749148268121,7.48865003,2583.9,2583.8,3.87026859]
[1749148268328,7.13669909,2583.9,2583.8,3.87026859]
[1749148268639,7.13667752,2583.9,2583.8,3.87026859]
[1749148268850,7.35368496,2583.9,2583.8,3.87026859]
[1749148269022,8.08605401,2583.9,2583.8,3.87026859]
[1749148269221,7.1366781,2583.9,2583.8,3.87026859]
[1749148269423,7.72440999,2583.9,2583.8,3.87026859]
[1749148269745,7.13673234,2583.9,2583.8,3.87026859]
[1749148269963,9.62441398,2583.9,2583.8,3.87026859]
[1749148270138,9.39865948,2583.9,2583.8,3.87026859]
[1749148270343,9.39885629,2583.9,2583.8,3.87026859]
[1749148270557,9.62471563,2583.9,2583.8,3.87026859]
[1749148270743,9.39884912,2583.9,2583.8,3.87026859]
[1749148270919,9.3988544,2583.9,2583.8,3.87026859]
[1749148271125,9.9866408,2583.9,2583.8,3.87026859]
[1749148271352,9.39890146,2583.9,2583.8,3.87026859]
[1749148271546,9.26281168,2583.9,2583.8,3.87026859]
[1749148271747,9.03695858,2583.9,2583.8,3.87026859]
[1749148271958,1.921,2583.9,2583.8,3.87026859]
[1749148272162,2.28287931,2583.9,2583.8,3.87026859]
[1749148272365,0.02,2583.9,2583.8,5.45403642]
[1749148272647,6.773,2583.9,2583.8,5.45403642]
[1749148272849,0.02,2583.9,2583.8,5.45403642]
[1749148273255,6.773,2583.9,2583.8,5.45403642]
[1749148273707,0.02,2583.9,2583.8,21.45403642]
[1749148273996,6.773,2583.9,2583.8,21.45403642]
[1749148275383,6.772,2583.9,2583.8,21.45403642]
[1749148275882,6.772,2583.9,2583.8,21.35403642]
[1749148276256,6.772,2583.9,2583.8,21.90403642]
[1749148276646,0.02,2583.9,2583.8,21.90403642]
[1749148276984,6.771,2583.9,2583.8,21.90403642]
[1749148278986,6.771,2583.9,2583.8,21.35403642]
[1749148279187,6.771,2583.9,2583.8,3.77026859]
[1749148280450,7.13240469,2583.9,2583.8,3.77026859]
[1749148280646,7.13241075,2583.9,2583.8,3.77026859]
[1749148280886,0.02,2583.9,2583.8,3.77026859]
[1749148281046,0.02,2583.9,2583.8,4.57016859]
[1749148281249,6.769,2583.9,2583.8,21.41422642]
[1749148283552,6.769,2583.9,2583.8,19.77026859]
[1749148284579,6.768,2583.9,2583.8,19.77026859]
[1749148285449,6.768,2583.9,2583.8,3.77026859]
[1749148285450,0.02,2583.9,2583.8,3.77026859]
[1749148285650,6.768,2583.9,2583.8,3.77026859]
[1749148285949,7.52648,2583.9,2583.8,3.77026859]
[1749148287888,7.52648,2583.9,2583.4,16.0]
[1749148288062,7.52648,2583.9,2583.8,3.87026859]
[1749148288265,7.12949602,2583.9,2583.8,3.87026859]
[1749148288461,0.38149322,2583.9,2583.8,3.87026859]
[1749148288650,6.767,2583.9,2583.8,3.87026859]
[1749148288848,7.12856221,2583.9,2583.8,3.87026859]
[1749148289053,7.1285617,2583.9,2583.8,3.87026859]
[1749148289253,6.767,2583.9,2583.8,3.87026859]
[1749148289454,7.12856111,2583.9,2583.8,3.87026859]
[1749148289655,7.12883504,2583.9,2583.8,3.87026859]
[1749148290286,0.02,2583.9,2583.8,3.87026859]
[1749148290588,6.766,2583.9,2583.8,3.87026859]
[1749148290898,0.02,2583.9,2583.8,3.87026859]
[1749148291188,6.766,2583.9,2583.8,4.64433425]
[1749148291357,6.766,2583.9,2583.8,3.87026859]
[1749148292190,0.02,2583.9,2583.8,20.66126859]
[1749148292367,6.766,2583.9,2583.8,20.66126859]
[1749148292765,6.766,2583.9,2583.8,19.87026859]
[1749148294469,6.766,2583.9,2583.8,3.87026859]
[1749148294893,0.02,2583.9,2583.8,4.64433425]
[1749148295196,6.765,2583.9,2583.8,5.45603425]
[1749148295703,6.765,2583.9,2583.8,6.00603425]
[1749148296071,0.02,2583.9,2583.8,15.73164502]
[1749148296286,1.0,2584.7,2584.6,3.86907064]
[1749148296502,7.744,2584.7,2584.6,3.86907064]
[1749148297312,1.0,2584.7,2584.6,3.86907064]
[1749148297472,7.744,2584.7,2584.6,3.86907064]
[1749148298097,1.0,2584.7,2584.6,3.86907064]
[1749148298273,1.0,2584.7,2584.6,21.94638082]
[1749148298481,7.743,2584.7,2584.6,21.94638082]
[1749148298687,7.743,2584.7,2584.6,21.06929822]
[1749148299098,7.743,2584.7,2584.6,3.86907064]
[1749148299300,0.8267,2584.6,2584.5,3.86922035]
[1749148299498,0.89307306,2584.6,2584.5,3.86922035]
[1749148300214,6.742,2584.6,2584.5,3.86922035]
[1749148300913,1.0,2584.7,2584.6,3.86907064]
[1749148301113,7.742,2584.7,2584.6,3.86907064]
[1749148302082,8.5038,2584.7,2584.6,3.86907064]
[1749148302504,8.5028,2584.7,2584.6,3.86907064]
[1749148304879,9.58059469,2584.7,2584.6,3.86907064]
[1749148306710,9.94176123,2584.7,2584.5,3.86915559]
[1749148306885,9.94176123,2584.7,2583.9,0.7998]
[1749148306886,0.7812,2584.2,2583.6,3.87046255]
[1749148307082,8.628,2584.1,2583.3,4.65748415]
[1749148307328,1.68915167,2584.0,2583.1,0.7865]
[1749148307620,1.68915936,2584.0,2583.9,3.87011881]
[1749148307789,7.1002636,2584.0,2583.9,3.87011881]
[1749148308127,6.739,2584.0,2583.9,3.87011881]
[1749148308620,6.739,2584.0,2583.3,3.87099294]
[1749148308781,0.36128654,2583.9,2583.8,3.87026859]
[1749148308987,0.37017418,2584.4,2584.3,3.86951979]
[1749148309227,6.739,2584.4,2584.1,3.86973697]
[1749148309400,0.785,2584.3,2584.2,3.86956949]
[1749148309598,1.14624984,2584.3,2584.2,3.86956949]
[1749148309791,1.99346723,2584.3,2584.2,3.86956949]
[1749148310125,2.35477528,2584.3,2584.2,3.86956949]
[1749148310521,1.99349633,2584.3,2584.2,3.86956949]
[1749148310819,1.99349633,2584.3,2584.2,3.86966953]
[1749148310820,2.35474188,2584.3,2584.2,3.86966953]
[1749148311023,1.99349209,2584.3,2584.1,3.86974993]
[1749148311227,0.87324921,2584.2,2584.1,3.86974993]
[1749148311619,1.23445582,2584.2,2584.1,3.86974993]
[1749148311816,1.23445493,2584.2,2583.9,3.87008029]
[1749148312017,0.785,2584.0,2583.9,3.87008029]
[1749148312194,9.7732124,2584.0,2583.9,3.87008029]
[1749148312390,9.412,2584.0,2583.9,3.87008029]
[1749148313426,9.77321158,2584.0,2583.9,3.87008029]
[1749148313630,9.77315717,2584.0,2583.9,3.87008029]
[1749148313832,10.50044725,2584.0,2583.9,3.87008029]
[1749148314624,10.50044725,2584.0,2583.9,3.87011881]
[1749148314625,10.86160673,2584.0,2583.9,3.87011881]
[1749148314832,10.50044725,2584.0,2583.9,3.87011881]
[1749148315190,10.86153152,2584.0,2583.9,3.87011881]
[1749148315392,10.86153152,2584.0,2583.8,3.87014285]
[1749148315632,1.47098064,2583.9,2583.8,3.87014285]
[1749148315812,1.47098051,2583.9,2583.8,3.87014285]
[1749148316015,1.47098401,2583.9,2583.8,3.87014285]
[1749148316219,1.10995976,2583.9,2583.8,3.87014285]
[1749148316928,1.4709899,2583.9,2583.8,3.87014285]
[1749148317132,1.4209899,2583.9,2583.8,3.87014285]
[1749148317530,1.05995976,2583.9,2583.7,3.8703425]
[1749148317732,9.77303014,2584.0,2583.6,3.87056819]
[1749148317733,0.7916,2583.7,2583.6,3.87056819]
[1749148318313,1.15256231,2583.7,2583.6,3.87056819]
[1749148318531,1.15256231,2583.7,2582.9,4.64321032]
[1749148318532,1.1525631,2583.7,2582.9,0.7716]
[1749148318707,6.737,2583.6,2583.4,3.87073569]
[1749148318912,0.78895631,2583.5,2582.7,4.65838011]
[1749148319117,2.708,2583.4,2582.8,3.87176707]
[1749148319360,2.708,2583.4,2583.1,3.87130463]
[1749148319503,2.708,2583.4,2583.0,3.87141755]
[1749148319702,2.708,2583.4,2582.2,0.7866]
[1749148319703,0.819,2583.3,2582.2,0.7866]
[1749148319947,2.18667278,2583.3,2582.4,3.87236679]
[1749148320141,0.36104111,2583.2,2583.1,3.8713174]
[1749148320342,1.45322869,2583.2,2583.1,3.8713174]
[1749148320504,10.07922869,2583.2,2583.1,3.8713174]
[1749148321220,10.07922869,2583.2,2582.9,3.87152259]
[1749148321425,10.07922869,2583.2,2583.0,3.87138418]
[1749148321737,10.07922869,2583.2,2583.1,3.8713174]
[1749148321933,3.34222869,2583.2,2583.1,3.8713174]
[1749148322136,3.34222869,2583.2,2582.9,3.87151797]
[1749148322137,0.819,2583.1,2582.9,3.87151797]
[1749148322338,0.819,2582.8,2582.1,0.02]
[1749148322653,0.819,2582.5,2582.1,0.02]
[1749148322852,0.819,2582.5,2582.4,3.87236679]
[1749148323008,7.556,2582.5,2582.4,3.87236679]
[1749148323549,6.737,2582.5,2582.4,3.87236679]
[1749148323751,0.7679,2582.8,2582.6,3.87198752]
[1749148323913,0.7679,2582.8,2582.7,3.87191698]
[1749148324114,9.3939,2582.8,2582.7,3.87191698]
[1749148324349,10.3692572,2582.8,2582.6,3.87205846]
[1749148324643,14.3692572,2582.8,2582.5,3.8721434]
[1749148324846,14.3692572,2582.8,2582.7,3.87191698]
[1749148325067,4.7679,2582.8,2582.7,3.87191698]
[1749148325222,10.737,2582.8,2582.7,3.87191698]
[1749148325410,2.24844729,2583.5,2583.4,3.87086784]
[1749148325610,1.889,2583.5,2583.4,3.87086784]
[1749148325834,8.626,2583.5,2583.4,3.87086784]
[1749148326859,0.792,2584.1,2584.0,3.86996904]
[1749148327150,4.66734766,2584.2,2584.1,3.86981927]
[1749148327363,11.40434766,2584.2,2584.1,3.86981927]
[1749148328120,2.77834766,2584.2,2584.1,3.86981927]
[1749148328333,9.51534766,2584.2,2584.1,3.86981927]
[1749148329414,2.77834766,2584.2,2584.1,3.86981927]
[1749148329633,9.51434766,2584.2,2584.1,3.86981927]
[1749148329837,19.7858932,2584.2,2583.9,3.87010696]
[1749148330038,19.7858932,2584.2,2584.1,3.86981927]
[1749148330039,3.32428243,2584.2,2584.1,3.86981927]
[1749148330217,11.94928243,2584.2,2584.1,3.86981927]
[1749148331027,11.94928243,2584.2,2583.8,3.87024503]
[1749148331261,1.19492824,2584.1,2583.9,3.86998622]
[1749148331463,0.792,2584.0,2583.3,3.87092569]
[1749148331657,9.72561077,2583.8,2583.4,3.87073002]
[1749148331840,6.735,2583.7,2583.4,3.87073002]
[1749148332041,2.681,2583.6,2582.9,3.87159916]
[1749148332229,9.72561077,2583.5,2583.3,3.87093843]
[1749148332431,9.72561077,2583.5,2583.1,3.87119313]
[1749148332744,9.72561077,2583.2,2582.3,0.7647]
[1749148332928,9.416,2583.1,2582.1,3.89280809]
[1749148333135,6.735,2583.0,2582.9,3.87150351]
[1749148333330,0.792,2583.1,2583.0,3.87146728]
[1749148333557,6.735,2583.1,2583.0,3.87146728]
[1749148333763,0.792,2583.5,2583.4,3.87086784]
[1749148333969,6.681,2583.5,2583.4,3.87086784]
[1749148334262,13.416,2583.5,2583.4,3.87086784]
[1749148334424,13.415,2583.5,2583.4,3.87086784]
[1749148334766,10.7565,2583.5,2583.1,3.87124787]
[1749148334927,24.35285,2583.5,2582.6,3.87202099]